Cogmind - Beta 12 @@@ ROGUE MODE // 2023.07.08 @ 17:51:20 Player: Senator Honkstrong Result: Destroyed by 8R-AWN with 8R-AWN's Boregun Performance ------------- Evolutions (0) 0 Regions Visited (3) 600 Robots Destroyed (23) 115 Value Destroyed (502) 502 Prototype IDs (27) 540 Alien Tech Used (0) 0 Bonus (332) 332 TOTAL SCORE: 2089 Bonus ------- Follower Combat Kills 32 Aligned with FarCom 300 Cogmind --------- Core Integrity 0/250 Matter 219/300 Energy 265/265 System Corruption 0% Temperature Cool (0) Movement Treading (240) Ox1 Location -10/Exiles Parts ------- > --- POWER (1) -------- Improved Ion Engine > --- PROPULSION (2) --- Improved Treads > --- UTILITY (2) ------ Large Storage Unit Targeting Computer > --- WEAPON (2) ------- Longsword +1 > --- INVENTORY (15) --- High-capacity Matter Pod (200) High-capacity Matter Pod (200) Splice Drone Bay Assault Rifle Mini Grenade Launcher Datajack Heavy Explosive Trap Peak State ------------ > --- POWER ------------ Improved Ion Engine > --- PROPULSION ------- Improved Treads Improved Treads > --- UTILITY ---------- Large Storage Unit Targeting Computer > --- WEAPON ----------- Assault Rifle Longsword +1 > --- INVENTORY -------- Improved Ion Engine Nuclear Core Fission Core Improved Treads Improved Treads High-capacity Matter Pod High-capacity Matter Pod Splice Drone Bay Assault Rifle Mini Grenade Launcher Datajack Heavy Explosive Trap Heavy Explosive Trap Heavy Explosive Trap [Rating: 20] Favorites ----------- Power Improved Ion Engine Engine Improved Ion Engine Propulsion Light Treads Treads Light Treads Leg Aluminum Leg Utility Targeting Computer Storage Large Storage Unit Processor Targeting Computer Weapon Light Assault Rifle Energy Gun Improved Medium Laser Ballistic Gun Light Assault Rifle Launcher Mini Grenade Launcher Slashing Weapon Longsword +1 Build | -11 -10 -10 -10 ------- Run | Jun Mat Min Exi Slots Evolved . | . . . . Power . | . . . . Propulsion . | . . . . Utility . | . . . . Weapon . | . . . . Parts Attached 26 | 6 14 . 6 Power 5 | 1 3 . 1 Engine 5 | 1 3 . 1 Core . | . . . . Reactor . | . . . . Propulsion 8 | 2 4 . 2 Treads 6 | 2 2 . 2 Leg 2 | . 2 . . Wheel . | . . . . Hover . | . . . . Flight . | . . . . Utility 3 | 1 2 . . Device . | . . . . Storage 2 | 1 1 . . Processor 1 | . 1 . . Hackware . | . . . . Protection . | . . . . Artifact . | . . . . Weapon 10 | 2 5 . 3 Energy Gun 3 | . 3 . . Energy Cannon . | . . . . Ballistic Gun 5 | 2 2 . 1 Ballistic Cannon . | . . . . Launcher 1 | . . . 1 Special Weapon . | . . . . Impact Weapon . | . . . . Slashing Weapon 1 | . . . 1 Piercing Weapon . | . . . . Special Melee Weapon . | . . . . Unidentified Prototypes 1 | . 1 . . Parts Lost 7 | . 2 . 5 Power 1 | . . . 1 Propulsion 4 | . 1 . 3 Utility . | . . . . Weapon 2 | . 1 . 1 Highest Loss Streak 5 | . 1 . 5 To Critical Strikes 4 | . . . 4 Average Slot Usage (%) 96 | . 95 100 98 Engine 14 | . 14 14 14 Treads 21 | . 18 28 27 Leg 5 | . 9 . . Storage 14 | . 14 14 14 Processor 11 | . 10 14 14 Energy Gun 9 | . 9 14 4 Ballistic Gun 16 | . 17 14 13 Slashing Weapon 1 | . . . 9 Naked Turns . | . . . . Heaviest Build 32 | 10 32 32 32 Greatest Support 46 | 40 46 46 46 Greatest Overweight (x) 2 | 2 2 . 1 Average Overweight (x) . | . . . . Largest Inventory Capacity 15 | 8 15 15 15 Average Capacity 13 | 7 13 15 15 Most Carried 15 | 4 15 15 15 Average Carried 12 | 3 12 14 13 Final Capacity 15 | 8 15 15 15 Final Carried 15 | 4 15 15 7 Class Distribution -------------------- 100% | Mutant Dominant Class ---------------- Mutant | -10/Materials Mutant | -10/Mines Mutant | -10/Exiles Resources | -11 -10 -10 -10 ----------- Run | Jun Mat Min Exi Matter Collected 1016 | 290 570 156 . Remotely . | . . . . Salvage Created 780 | 126 558 85 11 Parts 56 | 10 41 5 . Haulers Intercepted 2 | . 2 . . Recyclers Shooed 1 | 1 . . . Parts Field Recycled . | . . . . Retrieved Matter . | . . . . Parts Self-Destructed . | . . . . Prevented . | . . . . Kills | -11 -10 -10 -10 ------- Run | Jun Mat Min Exi Combat Hostiles Destroyed 19 | . 12 3 4 Guns 15 | . 12 3 . AOE 4 | . . . 4 Classes Destroyed 7 | 2 4 . 1 Tunneler 3 | 3 . . . Hauler 2 | . 2 . . Recycler 1 | 1 . . . Watcher 2 | . 2 . . Swarmer 5 | . 3 2 . Grunt 10 | . 9 1 . Assembled 4 | . . . 4 Best Kill Streak 4 | 4 3 2 4 Combat Bots Only 4 | . 3 2 4 Max Kills in Single Turn 2 | 1 1 1 2 Gunslinging . | . . . . Exploded 2 | . . . 2 Melee . | . . . . Uniques/NPCs Destroyed . | . . . . Combat | -11 -10 -10 -10 -------- Run | Jun Mat Min Exi Damage Taken 1569 | . 589 132 848 Core 258 | . 52 29 177 Absorbed by Shields . | . . . . Core Remaining (%) 100 | 100 . . . Volleys Fired 79 | 15 49 9 6 Largest 2 | 2 2 2 1 Hottest 106 | 40 106 76 30 Shots Fired 147 | 30 93 18 6 Gun 143 | 30 93 18 2 Cannon . | . . . . Launcher 4 | . . . 4 Special . | . . . . Kinetic 110 | 30 69 9 2 Thermal 33 | . 24 9 . Explosive 4 | . . . 4 Electromagnetic . | . . . . Robot Hit Streak 16 | 6 16 5 2 Robot Miss Streak 3 | 2 3 3 3 Penetration Max . | . . . . Secondary Targets . | . . . . Shots Hit Robots 111 | 19 67 8 17 Core Hits 54 | 9 31 5 9 Critical Kills . | . . . . Critical Parts Destroyed 1 | . . 1 . Critical Strikes 6 | . 2 2 2 Burn 3 | . 2 1 . Destroy 1 | . . 1 . Sever 2 | . . . 2 Melee Attacks 15 | . . . 15 Impact . | . . . . Slashing 15 | . . . 15 Piercing . | . . . . Sneak Attacks . | . . . . Combat Hostiles . | . . . . Follow-up Attacks . | . . . . Damage Inflicted 2019 | 165 632 117 1105 Guns 929 | 165 632 117 15 Cannons . | . . . . Explosions 382 | . . . 382 Melee 708 | . . . 708 Ramming . | . . . . Kinetic 616 | 165 386 50 15 Thermal 313 | . 246 67 . Explosive 382 | . . . 382 Electromagnetic . | . . . . Impact . | . . . . Slashing 708 | . . . 708 Piercing . | . . . . Highest Corruption . | . . . . Average Corruption . | . . . . Corruption Purged . | . . . . Corruption Blocked . | . . . . Overload Shots . | . . . . Overflow Damage 31 | . . . 31 Projectiles . | . . . . Explosions 31 | . . . 31 Melee . | . . . . Knockbacks . | . . . . Impact . | . . . . Kinetic . | . . . . Secondary . | . . . . Self-Inflicted Damage 81 | . . . 81 Shots 3 | . . . 3 Rammed . | . . . . Targets Rammed . | . . . . Kicked . | . . . . Crushed . | . . . . Highest Temperature 141 | . 141 108 36 Average Temperature 38 | . 35 50 18 Received Heat Transfer 422 | . 300 42 80 Siege Activations . | . . . . Robots Corrupted . | . . . . Combat Hostiles . | . . . . Parts Fried . | . . . . Impact Corruptions . | . . . . Robots Melted . | . . . . Combat Hostiles . | . . . . Parts Melted 3 | . 3 . . Heat Transferred 1038 | . 816 222 . Parts Sabotaged . | . . . . Parts Stolen . | . . . . Parts Stripped . | . . . . Power Chain Reactions . | . . . . Missiles Intercepted . | . . . . Alert | -11 -10 -10 -10 ------- Run | Jun Mat Min Exi Peak Influence 135 | 20 135 118 . Initial 13 | . 13 8 . Average 35 | 7 40 20 . Maximum Alert Level . | . . . . Low Security (%) 100 | 100 100 100 . Level 1 . | . . . . Level 2 . | . . . . Level 3 . | . . . . Level 4 . | . . . . Level 5 . | . . . . High Security . | . . . . Max Security . | . . . . Squads Dispatched 2 | . 2 . . Investigation 2 | . 2 . . Extermination . | . . . . Reinforcement . | . . . . Assault . | . . . . Garrison . | . . . . Intercept . | . . . . Searches Triggered . | . . . . Construction Impeded . | . . . . Haulers Reinforced . | . . . . Active Scanning Responses . | . . . . Cargo Convoy Interrupts . | . . . . Stealth | -11 -10 -10 -10 --------- Run | Jun Mat Min Exi Distress Signals . | . . . . Communications Jammed . | . . . . Distress Signals . | . . . . Times Spotted 32 | . 19 5 8 Peak Tracking Total 9 | . 4 3 9 Tactical Retreats 1 | . 1 . . Traps | -11 -10 -10 -10 ------- Run | Jun Mat Min Exi Traps Triggered 1 | . 1 . . Indirectly . | . . . . Trap Hack Attempts . | . . . . Triggered . | . . . . Disarmed . | . . . . Reprogrammed . | . . . . Reused 1 | . . . 1 Traps Extracted . | . . . . Installed 2 | . . . 2 Triggered . | . . . . Most Traps Carried 3 | . . 3 3 Machines | -11 -10 -10 -10 ---------- Run | Jun Mat Min Exi Machines Disabled 1 | . . 1 . Max in Single Turn 1 | . . 1 . Machines Repaired . | . . . . Machines Sabotaged . | . . . . Overloaded Fab Kills . | . . . . Hacking | -11 -10 -10 -10 --------- Run | Jun Mat Min Exi Machines Accessed 11 | . 9 1 1 Terminals 8 | . 8 . . Fabricators . | . . . . Repair Stations . | . . . . Recycling Units 1 | . 1 . . Scanalyzers . | . . . . Garrison Access . | . . . . Total Hacks 31 | . 29 1 1 Successful 16 | . 14 1 1 Failed 15 | . 15 . . Catastrophic . | . . . . Database Lockouts . | . . . . Manual 16 | . 15 . 1 Terminals 28 | . 28 . . Fabricators . | . . . . Repair Stations . | . . . . Recycling Units 1 | . 1 . . Scanalyzers . | . . . . Garrison Access . | . . . . Terminal Hacks 13 | . 11 1 1 Robot Analysis 1 | . 1 . . Prototype ID Bank 4 | . 4 . . Open Door 1 | . . 1 . Branch Access Points 1 | . 1 . . Locate Traps 4 | . 4 . . Hauler Manifests 1 | . 1 . . EX-Prototype ID Bank 1 | . . . 1 Fabricator Hacks . | . . . . Repair Station Hacks . | . . . . Recycling Unit Hacks 1 | . 1 . . Retrieve Components 1 | . 1 . . Scanalyzer . | . . . . Garrison Access Hacks . | . . . . Unauthorized Hacks 2 | . 2 . . Terminals 2 | . 2 . . Botnet 2 | . 2 . . Fabricators . | . . . . Repair Stations . | . . . . Recycling Units . | . . . . Scanalyzers . | . . . . Garrison Access . | . . . . Data Cores Recovered . | . . . . Used . | . . . . Hacking Detections 8 | . 8 . . Full Trace Events 2 | . 2 . . Feedback Events . | . . . . Feedback Blocked . | . . . . Robot Schematics Acquired . | . . . . Robots Built . | . . . . Authchips . | . . . . Time . | . . . . Total Robot Build Rating . | . . . . Part Schematics Acquired . | . . . . Parts Built . | . . . . Authchips . | . . . . Time . | . . . . Total Part Build Rating . | . . . . Parts Repaired . | . . . . Time . | . . . . Parts Recycled . | . . . . Recycled Matter . | . . . . Retrieved Matter . | . . . . Retrieved Components 10 | . 10 . . Parts Scanalyzed . | . . . . Part Schematics Acquired . | . . . . Parts Damaged . | . . . . Bothacking | -11 -10 -10 -10 ------------ Run | Jun Mat Min Exi Used RIF Installer . | . . . . Robots Hacked . | . . . . Non-combat . | . . . . Combat . | . . . . Robot Hacks Applied . | . . . . Relay Couplers Released . | . . . . Fabnet Peak Effective % . | . . . . Robots Rewired . | . . . . Allies Hacked . | . . . . Hacks Repelled . | . . . . Allies | -11 -10 -10 -10 -------- Run | Jun Mat Min Exi Total Allies 3 | . . 3 . Largest Group 3 | . . 3 2 Highest-Rated Group 40 | . . 40 24 Highest-Rated Ally 16 | . . 16 16 Total Orders . | . . . . Ally Attacks 13 | . . 11 2 Total Damage 67 | . . 66 1 Kills 2 | . . 2 . Allies Corrupted . | . . . . Allies Melted . | . . . . Intel | -11 -10 -10 -10 ------- Run | Jun Mat Min Exi Robot Analysis Total 1 | . 1 . . Derelict Logs Recovered 1 | . . 1 . Drone Launches . | . . . . Drone Recoveries . | . . . . Exploration | -11 -10 -10 -10 ------------- Run | Jun Mat Min Exi Turns Passed 3450 | 132 2162 482 674 Spaces Moved 1565 | 53 958 262 292 Core 6 | 6 . . . Treads 1225 | 47 624 262 292 Legs 334 | . 334 . . Wheels . | . . . . Hover . | . . . . Flight . | . . . . Fastest Speed 50 | 50 160 160 160 Average Speed 166 | 152 171 160 160 Slowest Speed 260 | 160 260 160 240 Overloaded Moves . | . . . . Propulsion Burnouts . | . . . . Robots Hopped . | . . . . Cave-ins Triggered . | . . . . Exploration Rate (%) 49 | 4 99 53 43 Regions Visited 3 Branch Regions 2 Pre-discovered Areas . | . . . . Known Exits Taken 1 | . 1 . . Unknown Exits Taken 2 | 1 . 1 . Scrap Searched 3 | . . 3 . Spaces Dug . | . . . . Terrain Destroyed 25 | . . . 25 Melee . | . . . . Projectile . | . . . . AOE 25 | . . . 25 Terrain Rammed . | . . . . Walls Destroyed . | . . . . Machines Disabled . | . . . . Actions | -11 -10 -10 -10 --------- Run | Jun Mat Min Exi Total 2276 | 77 1410 309 480 Wait 516 | . 340 29 147 Move 1562 | 52 957 261 292 Hop . | . . . . Pick Up 40 | 4 28 5 3 Fast Attach 11 | 6 4 . 1 Attach 4 | . 1 . 3 Detach . | . . . . Swap 11 | . 9 . 2 Drop 36 | . 22 5 9 Fire 79 | 15 49 9 6 Melee 15 | . . . 15 Ram . | . . . . Kick . | . . . . Crush . | . . . . Escape Stasis . | . . . . Rewire . | . . . . Trap 2 | . . . 2 Miscellaneous . | . . . . Route ------- -11/Junkyard -10/Materials (discovered 4 exits: [*Mat x3] / *Min) -10/Mines (discovered 2 exits: [*Mat] / *Exi) -10/Exiles (discovered 1 exit: [*Min]) History --------- Turn | Location | Event 8 | -11/Junkyard | Discovered new exit (range 15) 133 | -11/Junkyard | Entered Materials 305 | -10/Materials | Build established: Mutant 385 | -10/Materials | Discovered new exit (range 15) 716 | -10/Materials | Discovered new exit (range 16) 1019 | -10/Materials | Discovered new exit (range 16) 1986 | -10/Materials | Discovered new exit (range 5) 2266 | -10/Materials | Identified exit to Mines 2295 | -10/Materials | Entered Mines 2368 | -10/Mines | Found the Drone Emporium 2376 | -10/Mines | Found Prototype Device 2454 | -10/Mines | Found a hidden stash of uninstalled traps 2502 | -10/Mines | Learned Materials stockpile data 2566 | -10/Mines | Assisted by bots powering up and referring to "LRC-V3" 2674 | -10/Mines | Discovered new exit (range 11) 2759 | -10/Mines | Deemed a non-threat by the Exiles lab entrance 2759 | -10/Mines | Discovered new exit (range 5) 2777 | -10/Mines | Entered Exiles 2777 | -10/Exiles | Accompanied by 2 allies 2806 | -10/Exiles | Discovered new exit (range 15) 2848 | -10/Exiles | Met 8R-AWN 2875 | -10/Exiles | Met EX-HEX 2929 | -10/Exiles | Met EX-BIN 2950 | -10/Exiles | Aligned with FarCom system 2952 | -10/Exiles | Given EX-Vault access code 2989 | -10/Exiles | Opened EX-Vault 3002 | -10/Exiles | Found Longsword +1 3037 | -10/Exiles | Warned to stay clear of 0b10 Research branches 3387 | -10/Exiles | Warned about trapping Exiles lab 3390 | -10/Exiles | Attacked by the Exiles 3404 | -10/Exiles | Core integrity fell below 50% 3432 | -10/Exiles | Core integrity fell below 20% 3451 | -10/Exiles | Destroyed by 8R-AWN with 8R-AWN's Boregun Last Messages --------------- 03421_ Penetrated by HV Slug. 03423_ HV Slug penetrates Earth. 03423_ Penetrated by HV Slug. 03424_ 8R-AWN Prototype Leg severed. 03425_ Penetrated by HV Slug. 03429_ HV Slug penetrates Wall. 03429_ Penetrated by HV Slug. 03431_ Destroyed Prototype Protection. 03431_ Penetrated by HV Slug. 03431_ Critical hit (Destroy). 03431_ Assault Rifle destroyed. 03436_ Penetrated by HV Slug. 03437_ 8R-AWN Prototype Ballistic Gun severed. 03438_ Penetrated by HV Slug. 03439_ HV Slug penetrates Earth. 03441_ Penetrated by HV Slug. 03444_ Critical hit (Destroy). 03444_ Imp. Treads destroyed. 03448_ Penetrated by HV Slug. [Achievement: This Is Interesting...] Map ----- +----------------------------------------------------+ | """#?????????????????????????????????????????????? | | """#?????????????????????????????????????????????? | | """#?????????????????????????????????????????????? | | """#?????????????????????????????????????????????? | | """#?????????????????????????????????????????????? | | """#?????????????????????????????????????????????? | | """#?????????????????????????????????????????????? | | """#?????????????????????????????????????????????? | | """#?????????????????????????????????????????????? | | """""????????????????????????????????????????????? | | """#?????????????????????????????????????????????? | | """""????????????????????????????????????????????? | | #?????????????????????????????????????????????? | | """#?????????????????????????????????????????????? | | ####????????????????????????????????????????????## | | ???????????????????????????????????????????????# | | ?????????????????????????????????????????????## | | ?????????????????????????????????????????????# < | | ##########???????????????????????????????????# | | """""""""##??????????????????????????????????# | | " """ """"##????????????????????????????????## # | | "" " #????????????###????????????????## # | | " """#?????????#### ###??????????????# | | " "#????????## #??????????????# | | " "##???????# g #?????????????## | | ""###????## # @ #????????????## # | | """#????# = ##???????????# ## | | "###### ##????????### ##? | | ## [ ########## #?? | | % #""""## ##?? | | *= [ ##?? | | ;# [[ #?? | | ;## ##? | | % ##"""""#### ## | | ##########??#### | | # #??????????????##### | | ####??????????????????### ** | | " # ????????????????????????### * | | """ ""###???????????????????????????### | | ""#" "##??????????????????????????????#" | | """##"""" ""##???????????????????????????????#### | | """??#########???????????????????????????????????# | | #????????????????????????????????????????????????# | | ?????????????????????????????????????????????????? | | ?????????????????????????????????????????????????? | | ?????????????????????????????????????????????????? | | ?????????????????????????????????????????????????? | | ?????????????????????????????????????????????????? | | ?????????????????????????????????????????????????? | | ?????????????????????????????????????????????????? | +----------------------------------------------------+ Best States ------------- Heat Dissipation 25 Energy Generation 12 Energy Capacity 265 Matter Stores 300 Matter Capacity 300 Sight Range 16 Terrain Scan Density 10 Evasion (%) 40 Targeting Accuracy 5 Recoil Reduction 2 Item Schematics ----------------- None Robot Schematics ------------------ None Fabricated ------------ Nothing Alien Tech Used ----------------- None Achievements -------------- This Is Interesting... Challenges ------------ None Game ------ Seed FissionStormUnit Manual? 0 Play Time 00:29:50 Cumulative 26.9 hours Start 2023.07.08 @ 17:21:08 End 2023.07.08 @ 17:51:20 Sessions 1 Manual Loads 0 Difficulty Rogue Special Mode None Game No. 16 Rogue 16 Adventurer 0 Explorer 0 Win Type - Total 0 Types 0/0/0/0/0/0/0/0/0 Lore% 25 Gallery% 26 Achievement% 27 Wizard Run 0 Options --------- ASCII 0 Keyboard 0 Movement Mouse Keybinds 0 Fullscreen 1 Font 18/SmallcapsGlow Map View 76x50 Tactical HUD 1 Map Filters NONE Filters NONE Steam X RUN: 629927d8-0c40-4fbc-b824-cd6046059d2a